bitfinex/quotes_ETHUSD_20250808
["timestamp","ask_amount","ask_price","bid_price","bid_amount"]
[1754676547311,2.47024099,4048.2,4047.9,1e-08]
[1754676547514,2.59355573,4048.0,4047.9,1e-08]
[1754676547687,0.1232,4048.0,4047.9,1e-08]
[1754676547892,3.14355573,4048.0,4047.9,1e-08]
[1754676548130,4.92625573,4048.0,4047.9,1e-08]
[1754676548288,6.06431178,4048.0,4047.9,1e-08]
[1754676548490,9.06431178,4048.0,4047.8,0.001]
[1754676548722,11.78611675,4047.9,4047.8,1e-08]
[1754676549299,3.02059986,4047.6,4047.5,1e-08]
[1754676549502,10.12679986,4047.6,4047.5,1e-08]
[1754676549736,10.12679986,4047.6,4046.6,0.001]
[1754676549737,0.55,4047.0,4046.6,0.001]
[1754676549911,6.14434933,4046.7,4046.6,0.001]
[1754676550542,7.92704933,4046.7,4046.6,0.001]
[1754676551051,6.14434933,4046.7,4046.6,0.001]
[1754676551352,4.6562,4046.7,4046.6,0.001]
[1754676551565,4.1062,4046.7,4046.6,0.4595]
[1754676551847,6.57734933,4046.7,4046.6,0.001]
[1754676552457,10.78508426,4046.7,4046.6,0.001]
[1754676552735,12.56778426,4046.7,4046.6,0.001]
[1754676553239,6.80208426,4046.7,4046.6,0.001]
[1754676553748,10.78508426,4046.7,4046.6,0.001]
[1754676554741,12.11028426,4046.7,4046.6,0.001]
[1754676555322,12.56778426,4046.7,4046.6,0.001]
[1754676555806,12.56778426,4046.7,4046.6,1e-08]
[1754676556013,12.56778426,4046.7,4044.6,1.2364]
[1754676556014,0.55,4044.9,4044.6,1.2364]
[1754676556313,2.47235927,4044.8,4044.6,1.2364]
[1754676556634,2.59637125,4044.7,4044.6,1.2364]
[1754676556837,2.59637125,4044.7,4043.9,0.124]
[1754676556838,2.47244893,4044.6,4043.9,2.59681387]
[1754676557043,3.983,4044.7,4044.0,1.2364]
[1754676557242,3.983,4044.7,4042.5,2.4736743]
[1754676557243,3.02267692,4044.2,4043.4,1.6949]
[1754676557422,7.00567692,4044.2,4043.4,1.6949]
[1754676557608,4.533,4044.2,4043.6,2.47302293]
[1754676557809,4.533,4044.2,4044.1,0.4595]
[1754676558228,3.983,4044.2,4044.1,0.4595]
[1754676558431,4.107,4044.2,4044.1,0.4595]
[1754676558637,6.57967692,4044.2,4044.1,1.6959]
[1754676558867,6.57967692,4044.2,4044.1,0.001]
[1754676559217,8.03490151,4044.2,4044.1,0.001]
[1754676559543,4.05190151,4044.2,4044.1,0.001]
[1754676559742,8.03590151,4044.2,4044.1,0.001]
[1754676560111,6.58067692,4044.2,4044.1,0.001]
[1754676560457,4.108,4044.2,4044.1,1.6959]
[1754676560757,6.58067692,4044.2,4044.1,1.6959]
[1754676560911,4.108,4044.2,4044.1,1.6959]
[1754676561120,3.984,4044.2,4044.1,1.6959]
[1754676561356,4.108,4044.2,4044.1,0.4595]
[1754676561552,7.54147692,4044.2,4044.1,0.001]
[1754676562121,9.32417692,4044.2,4044.1,0.001]
[1754676562355,12.32417692,4044.2,4044.1,0.001]
[1754676563123,12.32417692,4044.2,4043.3,0.001]
[1754676563124,3.0229215,4043.8,4043.3,0.001]
[1754676563462,3.1469215,4043.8,4043.3,0.001]
[1754676563669,0.124,4043.8,4043.3,0.001]
[1754676563960,0.124,4043.8,4043.7,2.47398266]
[1754676564167,0.124,4043.8,4043.7,1.7094]
[1754676564483,0.124,4043.8,4043.7,0.4626]
[1754676564762,2.5969215,4043.8,4043.7,0.001]
[1754676564967,3.25501365,4043.8,4043.7,0.001]
[1754676565137,3.25501365,4043.8,4043.3,0.001]
[1754676565138,3.0,4043.6,4042.2,0.4616]
[1754676565334,2.47383915,4042.3,4042.2,0.4616]
[1754676565561,0.124,4042.3,4042.2,1.7084]
[1754676565867,0.124,4042.5,4042.2,1.7084]
[1754676566033,2.47377941,4042.4,4042.2,0.4616]
[1754676566227,0.124,4042.5,4042.3,1.7084]
[1754676566730,0.124,4042.5,4042.0,1.621]
[1754676566731,0.124,4042.5,4042.4,1.7084]
[1754676566930,0.124,4042.5,4042.4,4.18217795]
[1754676567149,3.984,4043.6,4042.4,1.7084]
[1754676567352,0.124,4043.3,4042.5,1.7084]
[1754676567515,2.59707379,4043.6,4043.0,0.124]
[1754676567716,0.124,4043.6,4043.1,1.7084]
[1754676567923,3.984,4043.9,4043.1,0.4616]
[1754676568141,0.124,4043.2,4043.1,0.4616]
[1754676568667,0.124,4043.2,4043.1,1.7084]
[1754676568823,0.124,4043.2,4043.1,4.18174965]
[1754676569174,3.984,4043.9,4043.3,2.4731958]
[1754676569468,0.124,4044.0,4043.2,1.7084]
[1754676569699,0.124,4044.0,4043.4,0.124]
[1754676569903,0.124,4044.0,4043.8,2.47286109]
[1754676570104,2.4724935,4044.5,4043.9,1.8324]
[1754676570272,0.124,4044.4,4043.9,1.8324]
[1754676570476,0.124,4044.4,4044.0,0.4616]
[1754676570661,0.124,4044.4,4044.2,2.47266287]
[1754676570865,0.124,4044.4,4044.1,1.7084]
[1754676571093,0.124,4044.4,4044.2,1.7084]
[1754676571287,3.984,4044.8,4044.3,1.7084]
[1754676571507,6.45631319,4044.8,4044.4,1.7084]
[1754676571665,3.984,4044.8,4044.5,0.4616]
[1754676572662,3.984,4044.8,4044.4,1.2468]
[1754676572663,0.124,4044.9,4044.8,2.47231012]
[1754676572872,0.124,4044.9,4044.8,4.18071012]
[1754676573097,3.984,4045.4,4044.8,1.7084]
[1754676573306,4.1072,4045.4,4044.8,3.05789443]
[1754676573814,0.1232,4045.4,4044.8,0.5856]
[1754676574675,2.59520361,4045.4,4044.8,0.125]
[1754676574880,2.59520361,4045.4,4044.8,0.001]
[1754676574881,0.55,4045.3,4044.8,0.001]
[1754676575089,2.596249,4044.9,4044.8,0.001]
[1754676575379,2.596249,4044.9,4043.7,3.984]
[1754676575380,2.472249,4044.9,4043.7,2.109]
[1754676575606,2.47239241,4044.7,4044.0,2.47274125]
[1754676575806,2.47239241,4044.7,4043.7,2.109]
[1754676575807,2.47244593,4044.6,4043.9,2.47284765]
[1754676576111,3.984,4044.7,4043.7,5.47293871]
[1754676576112,2.47256062,4044.4,4043.7,5.47293871]
[1754676576612,2.47243237,4044.6,4043.8,2.47289028]
[1754676576810,6.45637195,4044.7,4043.7,5.47297291]
[1754676577036,3.984,4044.7,4044.1,2.47269451]
[1754676577317,0.55,4044.6,4042.0,1.497]
[1754676577475,0.124,4043.8,4042.4,0.4616]
[1754676577782,0.55,4044.5,4042.4,0.4616]
[1754676577783,0.124,4043.6,4043.0,0.124]
[1754676577978,0.124,4043.6,4043.3,2.47318397]
[1754676578203,0.124,4043.6,4043.0,0.124]
[1754676578611,2.47317753,4043.4,4043.0,0.124]
[1754676578793,0.124,4043.6,4043.0,0.124]
[1754676578994,0.45647,4043.5,4043.0,0.124]
[1754676579198,0.91317,4043.5,4042.5,1.2468]
[1754676579399,0.124,4043.1,4042.5,1.2468]
[1754676579601,0.124,4043.1,4042.6,2.47365095]
[1754676579818,0.124,4043.1,4042.5,1.2468]
[1754676579992,2.47284225,4044.0,4042.5,1.2468]
[1754676579993,0.124,4043.6,4043.1,2.47334965]
[1754676580197,0.124,4043.6,4043.1,1.2468]
[1754676580415,0.124,4043.6,4043.0,0.5856]
[1754676580416,0.124,4043.6,4043.0,0.124]
[1754676581188,2.47321044,4043.4,4043.0,0.124]
[1754676581389,2.47321044,4043.4,4042.0,14.02321819]
[1754676581390,2.47334965,4043.1,4042.1,4.2468]
[1754676581594,0.124,4042.9,4042.5,2.47369027]
[1754676581895,0.124,4042.9,4042.5,1.2468]
[1754676582494,0.124,4042.9,4042.5,0.4616]
[1754676582689,0.124,4042.9,4042.5,2.47371339]
[1754676582885,0.124,4042.9,4042.3,0.125]
[1754676583127,0.124,4042.9,4042.7,2.47355068]
[1754676583293,3.984,4043.4,4042.8,2.47350543]
[1754676583294,0.124,4043.1,4042.8,2.47350543]
[1754676583492,0.124,4043.1,4043.0,2.47341083]
[1754676583697,0.124,4043.5,4043.3,2.47322211]
[1754676583923,0.124,4043.5,4042.9,1.7084]
[1754676583924,5.10345112,4045.2,4044.1,2.47269544]
[1754676584102,0.53109861,4045.1,4044.5,2.47244903]
[1754676584317,3.984,4045.2,4044.4,1.2468]
[1754676584517,3.984,4045.2,4044.4,1.7084]
[1754676584713,3.984,4045.2,4043.4,0.4616]
[1754676584932,3.85862508,4045.1,4043.9,2.4728101]
[1754676585137,2.472249,4044.9,4043.4,0.4616]
[1754676585352,2.47237125,4044.7,4043.4,2.47315063]
[1754676585524,4.51538774,4044.6,4043.3,1.2468]
[1754676585699,2.47263388,4044.3,4043.5,2.47306173]
[1754676585895,6.45644463,4044.6,4043.3,1.2468]
[1754676586128,4.92254526,4044.6,4043.9,2.47282895]
[1754676586344,4.92254526,4044.6,4044.0,2.47278004]
[1754676586651,3.984,4044.8,4043.8,0.4616]
[1754676586848,0.3984,4045.1,4043.9,4.2468]
[1754676586849,0.53190899,4045.1,4043.9,4.2468]
[1754676587049,0.53190899,4045.2,4044.0,3.0]
[1754676587222,2.47222164,4045.0,4044.0,2.47274042]
[1754676587425,3.984,4045.3,4044.0,3.0]
[1754676587602,3.984,4045.3,4043.9,1.2468]
[1754676587798,4.55001,4045.3,4044.0,3.0]
[1754676588033,2.47217096,4045.1,4044.3,2.47257013]
[1754676588232,4.55001,4045.3,4043.9,4.2468]
[1754676588434,2.47233183,4044.8,4044.0,2.47275079]
[1754676588645,2.47248984,4044.6,4043.6,5.47304213]
[1754676588954,3.984,4044.7,4043.6,3.4616]
[1754676589245,3.984,4044.7,4044.4,2.47254233]
[1754676589451,0.56601,4045.3,4044.0,0.4616]
[1754676589746,3.984,4044.9,4044.4,2.47254923]
[1754676590101,3.984,4044.9,4043.9,0.4616]
[1754676590399,3.984,4045.3,4044.0,1.2468]
[1754676590600,0.98838553,4045.9,4044.4,2.47254377]
[1754676590849,3.984,4045.8,4044.5,2.4724935]
[1754676591037,4.97523328,4045.7,4045.2,2.4720453]
[1754676591331,0.4567,4045.6,4045.2,2.4720453]
[1754676591550,1.6761,4046.2,4044.6,0.4616]
[1754676591841,1.6761,4046.2,4044.2,3.0]
[1754676591842,2.47158768,4046.0,4045.3,2.47199935]
[1754676592053,1.06051356,4046.0,4045.5,2.47184003]
[1754676592271,3.53213476,4046.0,4045.1,2.47212602]
[1754676592574,3.53213476,4046.0,4044.7,1.2468]
[1754676592575,0.55,4045.8,4044.7,1.2468]
[1754676592775,1.0067,4045.9,4044.0,1.7084]
[1754676592776,2.47201128,4045.3,4044.0,1.7084]
[1754676592981,3.983,4045.2,4044.0,1.7084]
[1754676593183,3.983,4045.2,4044.2,3.0]
[1754676593387,3.983,4045.2,4044.1,3.0]
[1754676593564,3.983,4045.2,4044.0,1.7084]
[1754676593565,3.983,4045.2,4044.8,2.47225019]
[1754676593748,4.67415885,4045.2,4044.1,3.0]
[1754676594077,0.124,4045.0,4044.8,2.47225967]
[1754676594842,3.983,4045.6,4045.4,2.47189877]
[1754676595041,4.1062,4045.9,4045.1,2.59607544]
[1754676595241,0.1232,4045.9,4045.1,0.124]
[1754676595768,3.983,4045.9,4045.8,2.47169904]
[1754676596086,0.002,4046.2,4045.8,2.47169904]
[1754676596283,0.002,4046.2,4046.1,2.47151578]
[1754676596584,0.002,4046.2,4045.6,0.1232]
[1754676596585,0.002,4046.2,4046.0,2.47156693]
[1754676596741,0.002,4046.2,4046.1,2.47151578]
[1754676596942,0.002,4046.2,4045.9,2.47158078]
[1754676597195,0.002,4046.2,4046.0,2.47156543]
[1754676597386,0.002,4046.2,4045.8,2.47169864]
[1754676597582,0.002,4046.2,4045.9,0.1232]
[1754676597889,0.002,4046.2,4045.9,2.59483404]
[1754676598177,0.002,4046.2,4045.9,0.1232]
[1754676600559,0.002,4046.2,4045.9,2.59481936]
[1754676600884,0.002,4046.2,4045.9,0.1232]
[1754676601185,0.26184863,4046.2,4045.9,0.1232]
[1754676601340,2.47192187,4045.5,4045.2,0.124]
[1754676601540,2.47192187,4045.5,4044.8,2.59626395]
[1754676601541,0.5876,4045.4,4044.8,2.59626395]
[1754676601856,0.5876,4045.4,4044.1,2.47269734]
[1754676601857,3.982,4045.5,4045.1,2.47210222]
[1754676602046,3.982,4045.5,4045.3,0.124]
[1754676602241,0.1232,4045.9,4045.3,0.124]
[1754676603188,0.002,4046.2,4045.4,2.47194344]
[1754676603394,0.1232,4045.9,4045.7,2.4717202]
[1754676603616,0.1232,4045.9,4045.4,0.1232]
[1754676603812,0.1232,4045.9,4045.5,2.47188233]
[1754676604215,0.1232,4045.9,4045.7,2.47170516]
[1754676604511,0.1232,4045.9,4045.5,2.47188233]
[1754676604680,0.1232,4045.9,4045.4,0.1232]
[1754676605076,0.1232,4045.9,4045.7,2.4717124]
[1754676605283,0.1232,4045.9,4045.4,0.1232]
[1754676605482,0.1232,4045.9,4045.6,2.47180756]
[1754676605814,0.1232,4045.9,4045.5,2.4718804]
[1754676606313,0.4644,4045.8,4045.4,2.59513509]
[1754676606516,3.981,4045.7,4045.4,2.59513509]
[1754676606715,3.981,4045.7,4045.4,2.59512706]
[1754676606904,4.43786,4045.7,4045.4,2.59512706]
[1754676607279,4.43786,4045.7,4045.4,0.1232]
[1754676607677,4.90226,4045.7,4045.4,0.1232]
[1754676607915,2.47191799,4045.5,4045.0,0.124]
[1754676608115,2.47191799,4045.5,4044.5,4.31]
[1754676608116,4.23757509,4045.6,4044.7,2.4723649]
[1754676608304,2.47220256,4045.0,4044.7,0.124]
[1754676608613,2.47220256,4045.0,4044.4,0.124]
[1754676608614,3.981,4044.9,4044.4,0.124]
[1754676608915,3.981,4044.9,4044.7,2.47235833]
[1754676609084,3.981,4044.9,4044.7,2.47235663]
[1754676609285,3.981,4044.9,4044.8,2.47231012]
[1754676609889,3.981,4044.9,4044.3,2.47258124]
[1754676610091,3.981,4044.9,4044.8,2.47231012]
[1754676610906,3.981,4044.9,4044.4,2.47249547]
[1754676611110,3.981,4044.9,4044.7,2.4723314]
[1754676611418,3.981,4044.9,4044.6,2.47242179]
[1754676611920,3.981,4044.9,4044.4,2.47254768]
[1754676612216,3.981,4044.9,4044.6,2.47237686]
[1754676612422,3.981,4044.9,4044.7,2.47234853]
[1754676612582,0.4644,4044.8,4044.4,2.47254424]
[1754676612782,0.4644,4044.7,4044.6,2.47243237]
[1754676612989,0.4644,4044.7,4043.9,3.0]
[1754676613186,3.981,4044.9,4044.6,2.47238155]
[1754676613424,4.55567,4044.9,4044.4,2.47254155]
[1754676613720,4.55567,4044.9,4044.6,2.47241313]
[1754676614022,1.7657,4044.8,4044.2,2.47262232]
[1754676614325,1.7657,4044.8,4043.6,0.001]
[1754676614622,1.34376292,4044.7,4043.6,0.001]
[1754676614823,0.87936292,4044.7,4043.6,0.001]
[1754676615009,3.981,4044.6,4044.2,2.47265763]
[1754676615198,1.7657,4044.5,4043.7,2.47298266]
[1754676615601,1.7657,4045.2,4043.8,2.4729215]
[1754676615789,3.98,4045.1,4044.2,12.33442281]
[1754676615988,3.98,4045.1,4044.2,13.54972281]
[1754676616225,0.7644,4045.6,4044.3,3.4522]
[1754676616431,0.4644,4046.0,4044.8,2.47231012]
[1754676616630,0.002,4046.2,4045.7,2.47173571]
[1754676616930,0.002,4046.2,4046.1,2.47151578]
[1754676617104,0.002,4046.6,4046.1,2.47151578]
[1754676617105,0.002,4046.6,4046.5,2.47127146]
[1754676617499,0.002,4046.6,4046.5,3.68657146]
[1754676617913,0.002,4046.6,4046.5,3.66867146]
[1754676618114,0.002,4046.6,4046.5,4.12087146]
[1754676619493,0.002,4046.6,4046.5,4.24407146]
[1754676619689,0.002,4046.6,4046.5,7.24407146]
[1754676621144,0.002,4046.6,4046.5,10.77187146]
[1754676621642,0.002,4046.6,4046.5,6.79187146]
[1754676621941,0.002,4046.6,4046.5,10.77087146]
[1754676622146,0.002,4046.6,4046.5,11.22307146]
[1754676622312,0.002,4046.6,4046.5,10.77087146]
[1754676622700,0.002,4046.6,4046.5,9.55557146]
[1754676624149,0.002,4046.6,4046.5,5.57657146]
[1754676624294,0.002,4046.6,4046.5,9.55557146]
[1754676624494,1.738,4046.6,4046.5,9.55557146]
[1754676625239,1.738,4046.6,4046.5,6.57347146]
[1754676625441,1.738,4046.6,4046.5,4.1022]
[1754676625743,1.738,4046.6,4046.5,6.57347146]
[1754676626115,1.738,4046.6,4046.5,7.74427146]
[1754676626530,1.738,4046.6,4046.5,11.18197146]
[1754676627046,1.738,4046.6,4046.5,10.74427146]
[1754676628341,1.738,4046.6,4046.5,6.76527146]
[1754676628545,1.738,4046.6,4046.5,9.57247146]
[1754676629318,1.738,4046.6,4046.5,10.74327146]
[1754676629845,1.738,4046.6,4046.5,5.59447146]
[1754676630045,1.738,4046.6,4046.5,9.57147146]
[1754676630541,1.738,4046.6,4046.5,10.74227146]
[1754676632047,1.738,4046.6,4046.5,9.57147146]
[1754676632746,3.4173,4046.6,4046.5,9.57147146]
[1754676632921,1.738,4046.6,4046.5,6.57147146]
[1754676633718,2.3636,4046.6,4046.5,0.1232]
[1754676633928,3.7145,4046.6,4046.0,0.1232]
[1754676634144,3.7145,4046.6,4045.8,0.1232]
[1754676634145,0.1232,4046.3,4045.8,0.1232]
[1754676634451,1.6793,4046.2,4045.8,0.1232]
[1754676634762,1.6793,4046.1,4045.8,0.1232]
[1754676634945,1.6793,4046.0,4045.8,0.1232]
[1754676635338,0.4516,4045.9,4045.8,0.1232]
[1754676635539,0.4516,4045.9,4045.8,2.59488487]
[1754676635726,0.4516,4045.9,4045.8,0.1232]
[1754676636137,0.1232,4046.3,4045.8,0.1232]
[1754676636341,0.4516,4046.2,4045.9,3.976]
[1754676636538,0.4516,4046.1,4045.9,3.976]
[1754676636849,1.6793,4046.0,4045.8,0.1232]
[1754676637053,1.8025,4046.0,4045.5,3.976]
[1754676637350,1.6793,4045.9,4045.4,0.1232]
[1754676637527,1.6793,4045.9,4045.6,2.47180831]
[1754676637528,0.18025,4045.8,4045.6,2.47180831]
[1754676637729,1.85955,4045.8,4045.6,2.47181561]
[1754676637943,0.1232,4046.0,4045.7,2.47176014]
[1754676638119,0.1232,4046.0,4045.8,2.47164707]
[1754676638324,0.4516,4045.9,4045.7,3.976]
[1754676638519,0.4516,4045.8,4045.6,3.976]
[1754676638952,1.6793,4045.7,4045.5,3.976]
[1754676639248,1.6793,4045.7,4045.4,0.1232]
[1754676639454,0.1232,4046.0,4045.5,3.976]
[1754676639620,0.1232,4046.0,4045.6,2.47182123]
[1754676639823,0.1232,4046.0,4045.7,2.47170619]
[1754676640019,0.1232,4046.0,4045.8,3.976]
[1754676640225,1.738,4046.6,4046.5,2.47127146]
[1754676640564,1.738,4046.6,4046.5,6.44727146]
[1754676640870,1.738,4046.6,4046.5,6.57047146]
[1754676642667,1.738,4046.6,4046.5,2.59447146]
[1754676642868,1.738,4046.6,4046.5,6.56947146]
[1754676643036,2.3636,4046.6,4046.2,3.975]
[1754676643235,0.4516,4046.5,4046.2,3.975]
[1754676643570,0.1232,4046.3,4046.2,3.975]
[1754676643748,0.1232,4046.3,4045.8,2.47168315]
[1754676643749,2.17395,4046.3,4046.1,3.975]
[1754676643951,1.6793,4046.2,4046.1,3.975]
[1754676644272,1.738,4046.6,4046.5,2.47127146]
[1754676644471,1.738,4046.6,4046.5,6.44627146]
[1754676644657,1.738,4046.6,4046.5,6.56947146]
[1754676645175,1.738,4046.6,4046.5,11.17797146]
[1754676645746,1.738,4046.6,4046.5,9.56947146]
[1754676646640,1.738,4046.6,4046.5,9.56847146]
[1754676646839,1.738,4046.6,4046.5,11.17697146]
[1754676647973,0.002,4047.5,4047.0,2.47096614]
[1754676647974,1e-08,4047.1,4047.0,2.47096614]
[1754676648289,1e-08,4047.6,4047.5,5.4706609]
[1754676648434,1e-08,4047.6,4047.5,9.4446609]
[1754676648633,1e-08,4047.6,4047.5,11.1763609]
[1754676649051,0.4516,4049.6,4047.7,3.0]
[1754676649254,0.4516,4049.6,4049.2,2.46962362]
[1754676649542,0.4516,4049.6,4049.2,2.59282362]
[1754676649777,1.6813,4049.3,4049.2,6.56582362]
[1754676650265,0.002,4049.3,4049.2,6.56582362]
[1754676651971,0.4536,4049.3,4049.2,6.56582362]
[1754676652472,1.6813,4049.3,4049.2,0.1232]
[1754676652675,1.6813,4049.3,4049.2,4.0962]
[1754676653598,1.6813,4049.3,4049.2,6.56582362]
[1754676653755,1.6813,4049.3,4049.2,4.0962]
[1754676655446,1.84943,4049.3,4049.2,0.1232]
[1754676656375,1.84943,4049.3,4048.8,4.0942]
[1754676656577,1.6251,4049.2,4048.8,4.0942]
[1754676656897,1.6251,4049.1,4048.8,4.0942]
[1754676657064,1.6251,4049.0,4048.8,4.0942]
[1754676657384,0.4331,4048.9,4048.8,4.0942]
[1754676657551,0.4331,4048.9,4048.8,6.56406475]
[1754676657886,0.4331,4048.9,4048.8,4.0942]
[1754676658062,1.6251,4048.9,4048.8,4.0942]
[1754676658888,1.78761,4048.9,4048.8,0.1232]
[1754676659045,1.78761,4048.9,4048.3,0.1232]
[1754676659245,0.5563,4048.8,4048.3,0.1232]
[1754676659484,2.06316346,4048.7,4048.3,0.1232]
[1754676659842,1.6251,4048.6,4048.4,2.4700927]
[1754676659949,1.6251,4048.6,4048.3,4.0932]
[1754676659950,1.192,4048.6,4048.3,4.0932]
[1754676660145,0.4331,4048.5,4048.3,0.1232]
[1754676660351,2.47017681,4048.3,4047.5,2.4706163]
[1754676660654,2.47017681,4048.3,4047.5,0.1232]
[1754676660655,2.03462768,4048.2,4047.5,0.1232]
[1754676660854,2.47036081,4048.0,4047.5,0.1232]
[1754676661081,2.47047162,4047.9,4046.4,2.47133254]
[1754676661290,0.55,4048.0,4047.3,0.1232]
[1754676661291,1.3152,4047.8,4047.3,0.1232]
[1754676661469,2.8797648,4048.2,4047.3,0.1232]
[1754676661470,0.84262768,4048.2,4047.7,2.47053882]
[1754676661674,0.84262768,4048.2,4047.3,4.0932]
[1754676661675,0.84427648,4048.1,4047.3,4.0932]
[1754676661852,1.3152,4048.1,4047.3,0.1232]
[1754676662052,0.55,4047.9,4047.3,0.1232]
[1754676662351,0.1232,4047.7,4047.3,0.1232]
[1754676662577,1.6251,4047.6,4047.1,0.1232]
[1754676662775,0.4331,4047.5,4047.1,0.1232]
[1754676663083,1.6251,4047.4,4047.1,0.1232]
[1754676663451,1.6251,4047.3,4047.1,0.1232]
[1754676663868,0.4331,4047.2,4047.1,0.1232]
[1754676664095,1.6251,4047.2,4047.1,0.1232]
[1754676664290,1.6251,4047.2,4046.9,4.0932]
[1754676664501,1.6251,4047.1,4046.9,0.1232]
[1754676664667,1.6251,4047.1,4046.9,2.59422515]
[1754676664869,1.6251,4047.1,4046.9,0.1232]
[1754676665801,1.6251,4047.0,4046.2,2.4714113]
[1754676666012,3.31374103,4046.9,4046.4,0.1232]
[1754676666323,2.03469603,4046.9,4046.4,0.1232]
[1754676666490,1.6251,4046.8,4046.4,0.1232]
[1754676666670,0.1232,4047.0,4046.4,0.1232]
[1754676666878,0.4331,4047.8,4046.7,0.1232]
[1754676667172,0.5563,4048.3,4047.4,2.47066118]
[1754676667513,1.6251,4048.2,4047.7,0.1232]
[1754676667713,0.1232,4048.0,4047.4,0.1232]
[1754676668005,0.4331,4047.9,4047.4,0.1232]
[1754676668315,0.4331,4047.8,4047.4,2.59386496]
[1754676668617,0.4331,4047.7,4047.4,0.1232]
[1754676668906,0.4331,4047.6,4047.4,0.1232]
[1754676669118,0.1232,4048.0,4047.9,2.47041675]
[1754676669284,0.1232,4048.0,4047.9,8.11561675]
[1754676669485,0.002,4049.1,4049.0,2.46974561]
[1754676669703,0.002,4049.1,4048.0,1.6762]
[1754676669904,0.002,4049.1,4048.6,2.46998452]
[1754676670201,0.002,4049.1,4048.6,3.969]
[1754676670372,0.002,4049.1,4048.8,2.46982436]
[1754676670802,0.002,4049.1,4048.6,3.969]
[1754676670997,0.002,4049.1,4048.8,2.46985866]
[1754676671207,0.002,4049.1,4049.0,2.46974561]
[1754676671411,0.002,4049.1,4049.0,6.43874561]
[1754676671814,0.002,4049.1,4049.0,8.11494561]
[1754676673485,0.002,4049.1,4049.0,11.11494561]
[1754676674128,1e-08,4049.1,4049.0,11.11494561]
[1754676676428,1e-08,4049.3,4049.2,2.46962362]
[1754676676786,1e-08,4049.3,4049.2,7.14582362]
[1754676678433,0.002,4050.0,4049.9,2.46919677]
[1754676678649,0.002,4050.2,4050.1,2.46907483]
[1754676679253,0.002,4050.2,4049.9,3.966]
[1754676679400,0.002,4050.2,4050.1,0.1232]
[1754676680004,0.002,4050.2,4050.1,2.59227483]
[1754676680528,0.4351,4050.2,4050.1,0.1232]
[1754676680730,1.6271,4050.2,4050.1,4.0882]
[1754676680929,1.79021,4050.2,4050.1,0.1232]
[1754676681520,1.79021,4050.2,4049.8,2.59244489]
[1754676681732,0.002,4050.2,4050.0,2.4691358]
[1754676681932,1.6251,4050.1,4049.7,3.965]
[1754676682232,1.6251,4050.0,4049.8,0.1232]
[1754676682401,1.6251,4049.9,4049.8,0.1232]
[1754676682605,1.6251,4049.9,4049.8,2.59245774]
[1754676683732,1.6251,4049.9,4049.8,0.1232]
[1754676684110,1.6251,4049.9,4049.8,2.59245774]
[1754676684509,1.6251,4049.9,4049.8,0.1232]
[1754676684706,1.78781,4049.9,4049.3,3.965]
[1754676684902,0.4632,4049.8,4049.5,2.46940904]
[1754676685107,1.35471,4049.9,4049.8,2.46925774]
[1754676685108,0.16271,4049.9,4049.8,2.46925774]
[1754676685360,0.002,4050.2,4050.1,2.46907483]
[1754676685723,0.002,4050.2,4050.1,3.77507483]
[1754676686061,0.002,4050.2,4050.1,2.59227483]
[1754676688143,0.002,4050.2,4049.1,2.46968462]
[1754676688144,1.6934,4050.2,4049.1,2.46968462]
[1754676688338,0.64506,4050.1,4050.0,2.4691358]
[1754676688543,0.64506,4050.1,4049.9,2.4691885]
[1754676688739,0.002,4050.2,4050.1,2.46907483]
[1754676689932,0.002,4050.2,4050.0,0.1232]
[1754676690138,0.002,4050.2,4050.1,2.46907483]
[1754676692864,0.002,4050.2,4050.0,2.59232609]
[1754676693073,0.002,4050.2,4050.1,2.46907483]
[1754676693274,0.002,4050.2,4050.0,0.1232]
[1754676693470,1.6914,4050.1,4050.0,0.1232]
[1754676693652,1.86094,4050.1,4050.0,2.4691358]
[1754676693853,0.63274,4050.1,4050.0,2.4691358]
[1754676694051,0.4632,4050.1,4050.0,2.4691358]
[1754676694251,0.002,4050.2,4050.1,2.46907483]
[1754676696639,0.4652,4050.2,4050.1,2.46907483]
[1754676697179,0.4652,4050.2,4050.0,2.59232426]
[1754676697344,1.6914,4050.1,4050.0,0.1232]
[1754676697686,1.86094,4050.1,4049.7,2.46927467]
[1754676697868,1.6914,4050.0,4049.7,2.46927467]
[1754676698070,0.4632,4049.9,4049.6,2.59256549]
[1754676698248,0.002,4050.2,4049.9,2.59237403]
[1754676698448,0.002,4050.2,4050.0,2.46912752]
[1754676698783,0.002,4050.2,4049.9,2.5923768]
[1754676698784,0.4652,4050.2,4049.9,2.5923768]
[1754676698984,0.18406,4050.2,4049.9,0.1232]
[1754676699166,0.002,4050.2,4050.0,2.46908131]
[1754676699682,0.002,4050.2,4050.1,2.46907483]
[1754676700376,0.002,4050.2,4050.0,2.46911578]
[1754676700551,0.002,4050.2,4049.9,0.1232]
[1754676700750,0.4652,4050.2,4049.9,2.59237591]
[1754676700950,0.4652,4050.2,4050.0,2.46913274]
[1754676701149,0.4652,4050.2,4049.9,2.59238688]
[1754676701345,1.6914,4050.1,4049.7,2.46930108]
[1754676701550,1.6914,4050.0,4049.7,0.1232]
[1754676701978,1.6914,4050.0,4049.5,2.46939884]
[1754676701979,1.6914,4049.9,4049.5,2.59262136]
[1754676702157,1.6914,4049.8,4049.5,2.59262136]
[1754676702362,0.16954,4050.1,4049.5,0.1232]